DEPARTMENT,ENTITY,DOCUMENT DATE,VENDOR NAME,EXPENSE TYPE,EXPENSE AREA,TRANSACTION NUMBER,AMOUNT,TRANSACTION DESCRIPTION
DEPARTMENT OF HEALTH,SOUTH CENTRAL AMBULANCE SERVICE NHS FOUNDATION TRUST,12/03/2022,JLT--QBE-STANDING ORDER                                          ,INSURANCE PREMIUM,OPERATIONS,1578507,"70,702.12",MOTOR INSURANCE 21/22          
DEPARTMENT OF HEALTH,SOUTH CENTRAL AMBULANCE SERVICE NHS FOUNDATION TRUST,28/02/2022,COMPLETE NETWORKS LTD                                            ,IT,ICT,1769187,"40,050.00",EXTERNAL NETWORK PROTECTION
DEPARTMENT OF HEALTH,SOUTH CENTRAL AMBULANCE SERVICE NHS FOUNDATION TRUST,24/02/2022,BYTES SOFTWARE SERVICES LTD                                      ,IT,ICT,1769202,"208,198.36",COMPUTER SOFTWARE LICENCE FEE
DEPARTMENT OF HEALTH,SOUTH CENTRAL AMBULANCE SERVICE NHS FOUNDATION TRUST,25/02/2022,ORTIVUS UK LTD                                                   ,IT,OPERATIONS,1769331,"53,579.96",DATA HOSTING & MANAGED SERVICE 
DEPARTMENT OF HEALTH,SOUTH CENTRAL AMBULANCE SERVICE NHS FOUNDATION TRUST,31/01/2022,ORTIVUS UK LTD                                                   ,IT,OPERATIONS,1769332,"53,579.96",DATA HOSTING & MANAGED SERVICE 
DEPARTMENT OF HEALTH,SOUTH CENTRAL AMBULANCE SERVICE NHS FOUNDATION TRUST,28/02/2022,ADVANCED HEALTH AND CARE LTD                                     ,IT,OPERATIONS,1769335,"39,060.00",SOFTWARE PROVISION AND MAINTENANCE
DEPARTMENT OF HEALTH,SOUTH CENTRAL AMBULANCE SERVICE NHS FOUNDATION TRUST,30/11/2021,"NHS SOUTH, CENTRAL & WEST CSU                                    ",COVID GP,OPERATIONS,1769389,"53,306.63",GPCAS PROJECT                  
DEPARTMENT OF HEALTH,SOUTH CENTRAL AMBULANCE SERVICE NHS FOUNDATION TRUST,23/02/2022,4NET TECHNOLOGIES LTD                                            ,IT,CHIEF EXECUTIVE AND THE BOARD,1770103,"135,900.00",TELEPHONY CONTRACT
DEPARTMENT OF HEALTH,SOUTH CENTRAL AMBULANCE SERVICE NHS FOUNDATION TRUST,23/02/2022,4NET TECHNOLOGIES LTD                                            ,IT,CHIEF EXECUTIVE AND THE BOARD,1770105,"50,140.80",TELEPHONY CONTRACT
DEPARTMENT OF HEALTH,SOUTH CENTRAL AMBULANCE SERVICE NHS FOUNDATION TRUST,03/03/2022,ALLSTAR FUEL CARD SERVICES- DD ONLY                              ,DIESEL,OPERATIONS,1770453,"104,812.28",FUEL
DEPARTMENT OF HEALTH,SOUTH CENTRAL AMBULANCE SERVICE NHS FOUNDATION TRUST,01/03/2022,TRUSTCO PLC                                                      ,IT,ICT,1770733,"86,379.02",HPE SUPPORT COVER
DEPARTMENT OF HEALTH,SOUTH CENTRAL AMBULANCE SERVICE NHS FOUNDATION TRUST,07/02/2022,STREAMLINE (KENT) LTD                                            ,PTS PRIVATE PROVIDERS,NON EMERGENCY SERVICES,1771460,"42,042.60",PP HOURS
DEPARTMENT OF HEALTH,SOUTH CENTRAL AMBULANCE SERVICE NHS FOUNDATION TRUST,14/02/2022,STREAMLINE (KENT) LTD                                            ,PTS PRIVATE PROVIDERS,NON EMERGENCY SERVICES,1771461,"41,755.80",PP HOURS
DEPARTMENT OF HEALTH,SOUTH CENTRAL AMBULANCE SERVICE NHS FOUNDATION TRUST,02/03/2022,J.TOMLINSON - INTEGRATED BUILDING SOLUTIONS                      ,BUILDING MAINTENANCE CONT,CORPORATE AFFAIRS,1771491,"88,872.48",BUILDING MAINTENANCE CONTRACT
DEPARTMENT OF HEALTH,SOUTH CENTRAL AMBULANCE SERVICE NHS FOUNDATION TRUST,01/03/2022,F & C UK PROPERTY FUND ICVC                                      ,RENTS,"FINANCE, ESTATES AND PROCUREMENT",1771510,"90,000.00",RENT - WERC
DEPARTMENT OF HEALTH,SOUTH CENTRAL AMBULANCE SERVICE NHS FOUNDATION TRUST,04/03/2022,J.TOMLINSON - INTEGRATED BUILDING SOLUTIONS                      ,BUILDING MAINTENANCE CONT,"FINANCE, ESTATES AND PROCUREMENT",1773082,"60,288.11",BUILDING MAINTENANCE CONTRACT
DEPARTMENT OF HEALTH,SOUTH CENTRAL AMBULANCE SERVICE NHS FOUNDATION TRUST,21/02/2022,F.A.S.T. AMBULANCE SERVICE LTD                                   ,PTS PRIVATE PROVIDERS,NON EMERGENCY SERVICES,1773150,"33,051.80",PP HOURS
DEPARTMENT OF HEALTH,SOUTH CENTRAL AMBULANCE SERVICE NHS FOUNDATION TRUST,21/02/2022,STREAMLINE (KENT) LTD                                            ,PTS PRIVATE PROVIDERS,NON EMERGENCY SERVICES,1773151,"38,982.60",PP HOURS
DEPARTMENT OF HEALTH,SOUTH CENTRAL AMBULANCE SERVICE NHS FOUNDATION TRUST,13/02/2022,MEDI4 AMBULANCE SERVICES LTD                                     ,PTS PRIVATE PROVIDERS,NON EMERGENCY SERVICES,1773153,"31,487.38",PP HOURS
DEPARTMENT OF HEALTH,SOUTH CENTRAL AMBULANCE SERVICE NHS FOUNDATION TRUST,20/02/2022,MEDI4 AMBULANCE SERVICES LTD                                     ,PTS PRIVATE PROVIDERS,NON EMERGENCY SERVICES,1773154,"30,306.68",PP HOURS
DEPARTMENT OF HEALTH,SOUTH CENTRAL AMBULANCE SERVICE NHS FOUNDATION TRUST,03/03/2022,SOUTH CENTRAL FLEET SERVICES LTD                                 ,FLEET SERVICES,OPERATIONS,1773218,"33,365.83",VEHICLE LEASE COSTS
DEPARTMENT OF HEALTH,SOUTH CENTRAL AMBULANCE SERVICE NHS FOUNDATION TRUST,03/03/2022,SOUTH CENTRAL FLEET SERVICES LTD                                 ,FLEET SERVICES,OPERATIONS,1773219,"161,683.92",VEHICLE LEASE COSTS
DEPARTMENT OF HEALTH,SOUTH CENTRAL AMBULANCE SERVICE NHS FOUNDATION TRUST,03/03/2022,SOUTH CENTRAL FLEET SERVICES LTD                                 ,FLEET SERVICES,OPERATIONS,1773220,"163,726.02",VEHICLE LEASE COSTS
DEPARTMENT OF HEALTH,SOUTH CENTRAL AMBULANCE SERVICE NHS FOUNDATION TRUST,01/03/2022,ATHLON MOBILITY SERVICES UK LTD                                  ,VEHICLE LEASING,OPERATIONS,1773259,"106,862.11",VEHICLE LEASE COSTS
DEPARTMENT OF HEALTH,SOUTH CENTRAL AMBULANCE SERVICE NHS FOUNDATION TRUST,28/02/2022,SOCIETE GENERALE EQUIPMENT FINANCE LTD                           ,VEHICLE LEASING,OPERATIONS,1773264,"85,057.92",VEHICLE LEASE COSTS
DEPARTMENT OF HEALTH,SOUTH CENTRAL AMBULANCE SERVICE NHS FOUNDATION TRUST,24/02/2022,SIEMENS FINANCIAL SERVICES                                       ,VEHICLE LEASING,NON EMERGENCY SERVICES,1773268,"36,688.50",VEHICLE LEASE COSTS
DEPARTMENT OF HEALTH,SOUTH CENTRAL AMBULANCE SERVICE NHS FOUNDATION TRUST,22/02/2022,SIEMENS FINANCIAL SERVICES                                       ,VEHICLE LEASING,NON EMERGENCY SERVICES,1773270,"34,690.75",VEHICLE LEASE COSTS
DEPARTMENT OF HEALTH,SOUTH CENTRAL AMBULANCE SERVICE NHS FOUNDATION TRUST,27/02/2022,SIEMENS FINANCIAL SERVICES                                       ,VEHICLE LEASING,NON EMERGENCY SERVICES,1773273,"36,269.22",VEHICLE LEASE COSTS
DEPARTMENT OF HEALTH,SOUTH CENTRAL AMBULANCE SERVICE NHS FOUNDATION TRUST,03/03/2022,RYGOR COMMERCIALS                                                ,VEHICLE PURCHASE,OPERATIONS,1773282,"34,788.00",USED VEHICLES FOR RESILIENCE
DEPARTMENT OF HEALTH,SOUTH CENTRAL AMBULANCE SERVICE NHS FOUNDATION TRUST,03/03/2022,RYGOR COMMERCIALS                                                ,VEHICLE PURCHASE,OPERATIONS,1773284,"35,388.00",USED VEHICLES FOR RESILIENCE
DEPARTMENT OF HEALTH,SOUTH CENTRAL AMBULANCE SERVICE NHS FOUNDATION TRUST,06/03/2022,BESTOUTCOME LTD                                                  ,IT,CORPORATE AFFAIRS,1773291,"56,960.88",PROJECT PORTFOLIO MANAGEMENT TOOL
DEPARTMENT OF HEALTH,SOUTH CENTRAL AMBULANCE SERVICE NHS FOUNDATION TRUST,10/03/2022,ALLSTAR FUEL CARD SERVICES- DD ONLY                              ,DIESEL,OPERATIONS,1775008,"104,759.76",FUEL
DEPARTMENT OF HEALTH,SOUTH CENTRAL AMBULANCE SERVICE NHS FOUNDATION TRUST,09/02/2022,ATEL FINANCIAL SERVICES LLC                                      ,VEHICLE LEASING,OPERATIONS,1775148,"54,810.97",VEHICLE LEASE COSTS
DEPARTMENT OF HEALTH,SOUTH CENTRAL AMBULANCE SERVICE NHS FOUNDATION TRUST,07/03/2022,TRIPLE POINT LEASE PARTNERS                                      ,VEHICLE LEASING,NON EMERGENCY SERVICES,1775158,"64,885.71",VEHICLE LEASE COSTS
DEPARTMENT OF HEALTH,SOUTH CENTRAL AMBULANCE SERVICE NHS FOUNDATION TRUST,07/03/2022,TRIPLE POINT LEASE PARTNERS                                      ,VEHICLE LEASING,NON EMERGENCY SERVICES,1775161,"30,494.39",VEHICLE LEASE COSTS
DEPARTMENT OF HEALTH,SOUTH CENTRAL AMBULANCE SERVICE NHS FOUNDATION TRUST,08/03/2022,INTERGRAPH UK LTD                                                ,IT,OPERATIONS,1775274,"33,436.80",SYSTEM DEVELOPEMENT 
DEPARTMENT OF HEALTH,SOUTH CENTRAL AMBULANCE SERVICE NHS FOUNDATION TRUST,08/03/2022,ALLOCATE SOFTWARE LTD                                            ,IT,ICT,1775278,"28,962.00",ANNUAL LICENCE RENEWAL
DEPARTMENT OF HEALTH,SOUTH CENTRAL AMBULANCE SERVICE NHS FOUNDATION TRUST,08/03/2022,SOUTH CENTRAL FLEET SERVICES LTD                                 ,FLEET SERVICES,OPERATIONS,1775809,"164,135.14",VEHICLE LEASE COSTS
DEPARTMENT OF HEALTH,SOUTH CENTRAL AMBULANCE SERVICE NHS FOUNDATION TRUST,08/03/2022,SOUTH CENTRAL FLEET SERVICES LTD                                 ,FLEET SERVICES,OPERATIONS,1775810,"104,671.50",VEHICLE LEASE COSTS
DEPARTMENT OF HEALTH,SOUTH CENTRAL AMBULANCE SERVICE NHS FOUNDATION TRUST,08/03/2022,SOUTH CENTRAL FLEET SERVICES LTD                                 ,FLEET SERVICES,OPERATIONS,1775811,"418,747.84",VEHICLE LEASE COSTS
DEPARTMENT OF HEALTH,SOUTH CENTRAL AMBULANCE SERVICE NHS FOUNDATION TRUST,08/03/2022,SOUTH CENTRAL FLEET SERVICES LTD                                 ,FLEET SERVICES,OPERATIONS,1775812,"50,283.31",VEHICLE LEASE COSTS
DEPARTMENT OF HEALTH,SOUTH CENTRAL AMBULANCE SERVICE NHS FOUNDATION TRUST,22/02/2022,BERKSHIRE HEALTHCARE NHS FOUNDATION TRUST                        ,TEMPS CLINICAL,OPERATIONS,1775871,"31,868.00",GP COVER
DEPARTMENT OF HEALTH,SOUTH CENTRAL AMBULANCE SERVICE NHS FOUNDATION TRUST,22/02/2022,BERKSHIRE HEALTHCARE NHS FOUNDATION TRUST                        ,TEMPS CLINICAL,OPERATIONS,1775872,"40,102.00",GP COVER
DEPARTMENT OF HEALTH,SOUTH CENTRAL AMBULANCE SERVICE NHS FOUNDATION TRUST,28/02/2022,OXFORD UNIVERSITY HOSPITALS NHS FOUNDATION TRUST                 ,AMBULANCE EQUIP MAINT/SERVICE,CLINICAL SERVICES,1775887,"36,148.00",MEDICAL DIRECTOR 
DEPARTMENT OF HEALTH,SOUTH CENTRAL AMBULANCE SERVICE NHS FOUNDATION TRUST,14/03/2022,HM REVENUE & CUSTOMS                                             ,PAYE/NI FEB 2022               ,"FINANCE, ESTATES AND PROCUREMENT",1776247,"3,934,815.89",PAYE/NI FEB 2022               
DEPARTMENT OF HEALTH,SOUTH CENTRAL AMBULANCE SERVICE NHS FOUNDATION TRUST,14/03/2022,HM REVENUE & CUSTOMS                                             ,APPRENTICESHIP LEVY FEB 22     ,"FINANCE, ESTATES AND PROCUREMENT",1776250,"64,790.00",APPRENTICESHIP LEVY FEB 22     
DEPARTMENT OF HEALTH,SOUTH CENTRAL AMBULANCE SERVICE NHS FOUNDATION TRUST,08/03/2022,SOUTH CENTRAL FLEET SERVICES LTD                                 ,FLEET SERVICES,OPERATIONS,1776281,"339,477.14",VEHICLE LEASE COSTS
DEPARTMENT OF HEALTH,SOUTH CENTRAL AMBULANCE SERVICE NHS FOUNDATION TRUST,27/02/2022,POLARIS MEDICAL SERVICES LTD                                     ,PRIVATE AMBULANCE PROVIDERS,OPERATIONS,1776306,"145,830.68",PP HOURS
DEPARTMENT OF HEALTH,SOUTH CENTRAL AMBULANCE SERVICE NHS FOUNDATION TRUST,27/02/2022,PHOENIX RESPONSE SERVICES LTD                                    ,PRIVATE AMBULANCE PROVIDERS,OPERATIONS,1776308,"30,238.72",PP HOURS
DEPARTMENT OF HEALTH,SOUTH CENTRAL AMBULANCE SERVICE NHS FOUNDATION TRUST,06/03/2022,PHOENIX RESPONSE SERVICES LTD                                    ,PRIVATE AMBULANCE PROVIDERS,OPERATIONS,1776356,"27,696.52",PP HOURS
DEPARTMENT OF HEALTH,SOUTH CENTRAL AMBULANCE SERVICE NHS FOUNDATION TRUST,06/03/2022,POLARIS MEDICAL SERVICES LTD                                     ,PRIVATE AMBULANCE PROVIDERS,OPERATIONS,1776357,"126,413.26",PP HOURS
DEPARTMENT OF HEALTH,SOUTH CENTRAL AMBULANCE SERVICE NHS FOUNDATION TRUST,28/01/2022,WESTWOOD ASSOCIATES LTD                                          ,IT,ICT,1777274,"56,832.35",DIGITAL RADIO PROJECT
DEPARTMENT OF HEALTH,SOUTH CENTRAL AMBULANCE SERVICE NHS FOUNDATION TRUST,04/02/2022,J.TOMLINSON - INTEGRATED BUILDING SOLUTIONS                      ,BUILDING MAINTENANCE CONT,"FINANCE, ESTATES AND PROCUREMENT",1777282,"31,990.46",BUILDING MAINTENANCE CONTRACT
DEPARTMENT OF HEALTH,SOUTH CENTRAL AMBULANCE SERVICE NHS FOUNDATION TRUST,08/03/2022,J.TOMLINSON - INTEGRATED BUILDING SOLUTIONS                      ,BUILDING MAINTENANCE CONT,"FINANCE, ESTATES AND PROCUREMENT",1777293,"31,990.46",BUILDING MAINTENANCE CONTRACT
DEPARTMENT OF HEALTH,SOUTH CENTRAL AMBULANCE SERVICE NHS FOUNDATION TRUST,07/01/2022,J.TOMLINSON - INTEGRATED BUILDING SOLUTIONS                      ,BUILDING MAINTENANCE CONT,"FINANCE, ESTATES AND PROCUREMENT",1777295,"31,990.46",BUILDING MAINTENANCE CONTRACT
DEPARTMENT OF HEALTH,SOUTH CENTRAL AMBULANCE SERVICE NHS FOUNDATION TRUST,08/12/2021,J.TOMLINSON - INTEGRATED BUILDING SOLUTIONS                      ,BUILDING MAINTENANCE CONT,"FINANCE, ESTATES AND PROCUREMENT",1777296,"31,990.46",BUILDING MAINTENANCE CONTRACT
DEPARTMENT OF HEALTH,SOUTH CENTRAL AMBULANCE SERVICE NHS FOUNDATION TRUST,28/02/2022,"NHS SOUTH, CENTRAL & WEST CSU                                    ",COVID GP,OPERATIONS,1777392,"209,242.60",GPCAS PROJECT                  
DEPARTMENT OF HEALTH,SOUTH CENTRAL AMBULANCE SERVICE NHS FOUNDATION TRUST,27/01/2022,"NHS SOUTH, CENTRAL & WEST CSU                                    ",COVID GP,OPERATIONS,1777393,"191,473.15",GPCAS PROJECT                  
DEPARTMENT OF HEALTH,SOUTH CENTRAL AMBULANCE SERVICE NHS FOUNDATION TRUST,10/03/2022,NORTH WEST AMBULANCE SERVICE NHS TRUST                           ,EXTERNAL CONSULTANCY,CLINICAL SERVICES,1778415,"40,000.00",HEE MENTAL HEALTH
DEPARTMENT OF HEALTH,SOUTH CENTRAL AMBULANCE SERVICE NHS FOUNDATION TRUST,10/03/2022,OXFORD UNIVERSITY HOSPITALS NHS FOUNDATION TRUST                 ,AMBULANCE EQUIP MAINT/SERVICE,HUMAN RESOURCES (HR),1778417,"59,778.25",STAFF SECONDMENT
DEPARTMENT OF HEALTH,SOUTH CENTRAL AMBULANCE SERVICE NHS FOUNDATION TRUST,10/03/2022,BUCKINGHAMSHIRE HEALTHCARE NHS TRUST                             ,EXTERNAL COURSE FEES/TRAINING,HUMAN RESOURCES (HR),1778468,"30,000.00",BOB ICS
DEPARTMENT OF HEALTH,SOUTH CENTRAL AMBULANCE SERVICE NHS FOUNDATION TRUST,10/03/2022,BUCKINGHAMSHIRE HEALTHCARE NHS TRUST                             ,EXTERNAL COURSE FEES/TRAINING,HUMAN RESOURCES (HR),1778469,"59,291.00",BOB ICS
DEPARTMENT OF HEALTH,SOUTH CENTRAL AMBULANCE SERVICE NHS FOUNDATION TRUST,15/02/2022,PTS-247 LTD                                                      ,PTS PRIVATE PROVIDERS,NON EMERGENCY SERVICES,1778496,"50,220.00",PP HOURS
DEPARTMENT OF HEALTH,SOUTH CENTRAL AMBULANCE SERVICE NHS FOUNDATION TRUST,28/02/2022,STREAMLINE (KENT) LTD                                            ,PTS PRIVATE PROVIDERS,NON EMERGENCY SERVICES,1778501,"40,374.60",PP HOURS
DEPARTMENT OF HEALTH,SOUTH CENTRAL AMBULANCE SERVICE NHS FOUNDATION TRUST,28/02/2022,ELITE MEDICAL AND AMBULANCE SERVICE LTD                          ,PTS PRIVATE PROVIDERS,NON EMERGENCY SERVICES,1778503,"41,258.14",PP HOURS
DEPARTMENT OF HEALTH,SOUTH CENTRAL AMBULANCE SERVICE NHS FOUNDATION TRUST,01/03/2022,F.A.S.T. AMBULANCE SERVICE LTD                                   ,PTS PRIVATE PROVIDERS,NON EMERGENCY SERVICES,1778522,"34,335.80",PP HOURS
DEPARTMENT OF HEALTH,SOUTH CENTRAL AMBULANCE SERVICE NHS FOUNDATION TRUST,07/03/2022,F.A.S.T. AMBULANCE SERVICE LTD                                   ,PTS PRIVATE PROVIDERS,NON EMERGENCY SERVICES,1778523,"33,201.80",PP HOURS
DEPARTMENT OF HEALTH,SOUTH CENTRAL AMBULANCE SERVICE NHS FOUNDATION TRUST,02/03/2022,PTS-247 LTD                                                      ,PTS PRIVATE PROVIDERS,NON EMERGENCY SERVICES,1778524,"41,376.00",PP HOURS
DEPARTMENT OF HEALTH,SOUTH CENTRAL AMBULANCE SERVICE NHS FOUNDATION TRUST,23/02/2022,TP HEALTH LTD                                                    ,OCCUP HEALTH NON NHS,HUMAN RESOURCES (HR),1778526,"37,113.00",OCCUPATIONAL HEALTH SERVICE PROVISION
DEPARTMENT OF HEALTH,SOUTH CENTRAL AMBULANCE SERVICE NHS FOUNDATION TRUST,23/02/2022,TP HEALTH LTD                                                    ,OCCUP HEALTH NON NHS,HUMAN RESOURCES (HR),1778527,"63,250.00",OCCUPATIONAL HEALTH SERVICE PROVISION
DEPARTMENT OF HEALTH,SOUTH CENTRAL AMBULANCE SERVICE NHS FOUNDATION TRUST,08/03/2022,4NET TECHNOLOGIES LTD                                            ,IT,ICT,1778530,"55,464.00",TELEPHONY CONTRACT
DEPARTMENT OF HEALTH,SOUTH CENTRAL AMBULANCE SERVICE NHS FOUNDATION TRUST,14/02/2022,EDF ENERGY LIMITED                                               ,ELECTRICITY,"FINANCE, ESTATES AND PROCUREMENT",1778536,"47,208.71",ELECTRIC/GAS CONTRACT
DEPARTMENT OF HEALTH,SOUTH CENTRAL AMBULANCE SERVICE NHS FOUNDATION TRUST,10/02/2022,WORKMAN-NURSLING                                                 ,RENTS,"FINANCE, ESTATES AND PROCUREMENT",1778581,"48,750.00",RENT - NURSLING
DEPARTMENT OF HEALTH,SOUTH CENTRAL AMBULANCE SERVICE NHS FOUNDATION TRUST,07/03/2022,PTS-247 LTD                                                      ,PTS PRIVATE PROVIDERS,NON EMERGENCY SERVICES,1779326,"45,948.00",PP HOURS
DEPARTMENT OF HEALTH,SOUTH CENTRAL AMBULANCE SERVICE NHS FOUNDATION TRUST,14/03/2022,TERRAFIX LTD                                                     ,IT,ICT,1779346,"43,866.36",VEHICLE LOCATION SYSTEM
DEPARTMENT OF HEALTH,SOUTH CENTRAL AMBULANCE SERVICE NHS FOUNDATION TRUST,09/03/2022,ANAPLAN LTD                                                      ,IT,OPERATIONS,1779360,"31,097.53",RESOURCE OPTIMISATION SOLUTION 
DEPARTMENT OF HEALTH,SOUTH CENTRAL AMBULANCE SERVICE NHS FOUNDATION TRUST,15/03/2022,BERKSHIRE HEALTHCARE NHS FOUNDATION TRUST                        ,TEMPS CLINICAL,OPERATIONS,1779364,"31,868.00",GP COVER
DEPARTMENT OF HEALTH,SOUTH CENTRAL AMBULANCE SERVICE NHS FOUNDATION TRUST,15/03/2022,BERKSHIRE HEALTHCARE NHS FOUNDATION TRUST                        ,TEMPS CLINICAL,OPERATIONS,1779365,"44,399.00",GP COVER
DEPARTMENT OF HEALTH,SOUTH CENTRAL AMBULANCE SERVICE NHS FOUNDATION TRUST,28/02/2022,EAST BERKSHIRE PRIMARY CARE(OUT OF HOURS SERVICE)                ,TEMPS CLINICAL,OPERATIONS,1779389,"78,613.50",GP COVER
DEPARTMENT OF HEALTH,SOUTH CENTRAL AMBULANCE SERVICE NHS FOUNDATION TRUST,17/03/2022,ALLSTAR FUEL CARD SERVICES- DD ONLY                              ,DIESEL,OPERATIONS,1779428,"107,536.15",FUEL
DEPARTMENT OF HEALTH,SOUTH CENTRAL AMBULANCE SERVICE NHS FOUNDATION TRUST,01/01/2022,FRIMLEY PRIMARY CARE SERVICE                                     ,TEMPS CLINICAL,OPERATIONS,1780335,"72,004.00",URGENT CARE SUB-CONTRACT
DEPARTMENT OF HEALTH,SOUTH CENTRAL AMBULANCE SERVICE NHS FOUNDATION TRUST,01/02/2022,BUSY BEE CLEANING SERVICES LTD                                   ,DOMESTIC SERVICE CONTRACT,"FINANCE, ESTATES AND PROCUREMENT",1782486,"56,535.91",CLEANING CONTRACT
DEPARTMENT OF HEALTH,SOUTH CENTRAL AMBULANCE SERVICE NHS FOUNDATION TRUST,01/02/2022,BUSY BEE CLEANING SERVICES LTD                                   ,DOMESTIC SERVICE CONTRACT,"FINANCE, ESTATES AND PROCUREMENT",1782487,"58,320.85",CLEANING CONTRACT
DEPARTMENT OF HEALTH,SOUTH CENTRAL AMBULANCE SERVICE NHS FOUNDATION TRUST,18/03/2022,COMPLETE NETWORKS LTD                                            ,IT,ICT,1782527,"99,210.00",EXTERNAL NETWORK PROTECTION
DEPARTMENT OF HEALTH,SOUTH CENTRAL AMBULANCE SERVICE NHS FOUNDATION TRUST,18/03/2022,SOFTWARE CENTRAL A/S                                             ,IT,ICT,1782574,"107,352.00",COMPUTER SOFTWARE LICENCE FEE
DEPARTMENT OF HEALTH,SOUTH CENTRAL AMBULANCE SERVICE NHS FOUNDATION TRUST,09/03/2022,RYGOR COMMERCIALS                                                ,VEHICLE PURCHASE,OPERATIONS,1782624,"41,748.00",USED VEHICLES FOR RESILIENCE
DEPARTMENT OF HEALTH,SOUTH CENTRAL AMBULANCE SERVICE NHS FOUNDATION TRUST,09/03/2022,RYGOR COMMERCIALS                                                ,VEHICLE PURCHASE,OPERATIONS,1782625,"41,388.00",USED VEHICLES FOR RESILIENCE
DEPARTMENT OF HEALTH,SOUTH CENTRAL AMBULANCE SERVICE NHS FOUNDATION TRUST,09/03/2022,RYGOR COMMERCIALS                                                ,VEHICLE PURCHASE,OPERATIONS,1782626,"41,988.00",USED VEHICLES FOR RESILIENCE
DEPARTMENT OF HEALTH,SOUTH CENTRAL AMBULANCE SERVICE NHS FOUNDATION TRUST,09/03/2022,CHURCHILL CONTRACT SERVICES LTD                                  ,MAKE READY SERVICES,CLINICAL SERVICES,1782627,"32,659.52",MAKE READY SERVICES
DEPARTMENT OF HEALTH,SOUTH CENTRAL AMBULANCE SERVICE NHS FOUNDATION TRUST,12/03/2022,J.TOMLINSON - INTEGRATED BUILDING SOLUTIONS                      ,BUILDING MAINTENANCE CONT,NON EMERGENCY SERVICES,1782628,"37,727.50",BUILDING MAINTENANCE CONTRACT
DEPARTMENT OF HEALTH,SOUTH CENTRAL AMBULANCE SERVICE NHS FOUNDATION TRUST,16/03/2022,MOTOROLA SOLUTIONS                                               ,UNIFORM,OPERATIONS,1782629,"88,149.60",BODYCAM PROJECT                
DEPARTMENT OF HEALTH,SOUTH CENTRAL AMBULANCE SERVICE NHS FOUNDATION TRUST,22/03/2022,NATIONAL WESTMINSTER BANK -DIRECT DEBIT                          ,CARD EXPENSES,CORPORATE AFFAIRS,1782710,"47,942.67",PURCHASE CARD PAYMENTS
DEPARTMENT OF HEALTH,SOUTH CENTRAL AMBULANCE SERVICE NHS FOUNDATION TRUST,31/03/2022,EAST BERKSHIRE PRIMARY CARE(OUT OF HOURS SERVICE)                ,TEMPS CLINICAL,OPERATIONS,1784079,"39,306.75",GP COVER
DEPARTMENT OF HEALTH,SOUTH CENTRAL AMBULANCE SERVICE NHS FOUNDATION TRUST,31/03/2022,EAST BERKSHIRE PRIMARY CARE(OUT OF HOURS SERVICE)                ,TEMPS CLINICAL,OPERATIONS,1784080,"39,306.75",GP COVER
DEPARTMENT OF HEALTH,SOUTH CENTRAL AMBULANCE SERVICE NHS FOUNDATION TRUST,31/03/2022,EAST BERKSHIRE PRIMARY CARE(OUT OF HOURS SERVICE)                ,TEMPS CLINICAL,OPERATIONS,1784081,"39,306.75",GP COVER
DEPARTMENT OF HEALTH,SOUTH CENTRAL AMBULANCE SERVICE NHS FOUNDATION TRUST,31/03/2022,EAST BERKSHIRE PRIMARY CARE(OUT OF HOURS SERVICE)                ,TEMPS CLINICAL,OPERATIONS,1784082,"39,306.75",GP COVER
DEPARTMENT OF HEALTH,SOUTH CENTRAL AMBULANCE SERVICE NHS FOUNDATION TRUST,31/03/2022,EAST BERKSHIRE PRIMARY CARE(OUT OF HOURS SERVICE)                ,TEMPS CLINICAL,OPERATIONS,1784083,"39,306.75",GP COVER
DEPARTMENT OF HEALTH,SOUTH CENTRAL AMBULANCE SERVICE NHS FOUNDATION TRUST,31/03/2022,EAST BERKSHIRE PRIMARY CARE(OUT OF HOURS SERVICE)                ,TEMPS CLINICAL,OPERATIONS,1784084,"39,306.75",GP COVER
DEPARTMENT OF HEALTH,SOUTH CENTRAL AMBULANCE SERVICE NHS FOUNDATION TRUST,21/03/2022,J.TOMLINSON - INTEGRATED BUILDING SOLUTIONS                      ,BUILDING MAINTENANCE CONT,"FINANCE, ESTATES AND PROCUREMENT",1784088,"115,910.47",BUILDING MAINTENANCE CONTRACT
DEPARTMENT OF HEALTH,SOUTH CENTRAL AMBULANCE SERVICE NHS FOUNDATION TRUST,31/03/2022,EAST BERKSHIRE PRIMARY CARE(OUT OF HOURS SERVICE)                ,TEMPS CLINICAL,OPERATIONS,1784124,"78,613.50",GP COVER
DEPARTMENT OF HEALTH,SOUTH CENTRAL AMBULANCE SERVICE NHS FOUNDATION TRUST,01/03/2022,GREEN METRO CARS READING LTD                                     ,TAXI HIRE - PTS,NON EMERGENCY SERVICES,1784143,"37,336.50",PP HOURS
DEPARTMENT OF HEALTH,SOUTH CENTRAL AMBULANCE SERVICE NHS FOUNDATION TRUST,31/01/2022,BUSY BEE CLEANING SERVICES LTD                                   ,DOMESTIC SERVICE CONTRACT,"FINANCE, ESTATES AND PROCUREMENT",1784196,"25,447.03",CLEANING CONTRACT
DEPARTMENT OF HEALTH,SOUTH CENTRAL AMBULANCE SERVICE NHS FOUNDATION TRUST,24/03/2022,ALLSTAR FUEL CARD SERVICES- DD ONLY                              ,DIESEL,OPERATIONS,1784964,"118,904.48",FUEL
DEPARTMENT OF HEALTH,SOUTH CENTRAL AMBULANCE SERVICE NHS FOUNDATION TRUST,14/03/2022,STREAMLINE (KENT) LTD                                            ,PTS PRIVATE PROVIDERS,NON EMERGENCY SERVICES,1785368,"44,571.00",PP HOURS
DEPARTMENT OF HEALTH,SOUTH CENTRAL AMBULANCE SERVICE NHS FOUNDATION TRUST,07/03/2022,STREAMLINE (KENT) LTD                                            ,PTS PRIVATE PROVIDERS,NON EMERGENCY SERVICES,1785369,"42,356.40",PP HOURS
DEPARTMENT OF HEALTH,SOUTH CENTRAL AMBULANCE SERVICE NHS FOUNDATION TRUST,14/03/2022,ELITE MEDICAL AND AMBULANCE SERVICE LTD                          ,PTS PRIVATE PROVIDERS,NON EMERGENCY SERVICES,1785371,"41,685.03",PP HOURS
DEPARTMENT OF HEALTH,SOUTH CENTRAL AMBULANCE SERVICE NHS FOUNDATION TRUST,07/03/2022,ELITE MEDICAL AND AMBULANCE SERVICE LTD                          ,PTS PRIVATE PROVIDERS,NON EMERGENCY SERVICES,1785372,"41,433.65",PP HOURS
DEPARTMENT OF HEALTH,SOUTH CENTRAL AMBULANCE SERVICE NHS FOUNDATION TRUST,22/03/2022,BERKSHIRE HEALTHCARE NHS FOUNDATION TRUST                        ,TEMPS CLINICAL,HUMAN RESOURCES (HR),1785375,"57,600.00",PEOPLE & WORKFORCE STRATEGY
DEPARTMENT OF HEALTH,SOUTH CENTRAL AMBULANCE SERVICE NHS FOUNDATION TRUST,27/01/2022,EDF ENERGY LIMITED                                               ,ELECTRICITY,"FINANCE, ESTATES AND PROCUREMENT",1785379,"47,208.71",ELECTRIC/GAS CONTRACT
DEPARTMENT OF HEALTH,SOUTH CENTRAL AMBULANCE SERVICE NHS FOUNDATION TRUST,01/03/2022, (WOKING CARS) SA TAXIS LTD                                      ,TAXI HIRE - PTS,NON EMERGENCY SERVICES,1785388,"30,251.65",PP HOURS
DEPARTMENT OF HEALTH,SOUTH CENTRAL AMBULANCE SERVICE NHS FOUNDATION TRUST,16/02/2022,CRAIGARD (1650 PARKWAY) LIMITED                                  ,RENTS,"FINANCE, ESTATES AND PROCUREMENT",1785393,"47,452.80",RENT - WHITELEY EDUCATION CENTRE 
DEPARTMENT OF HEALTH,SOUTH CENTRAL AMBULANCE SERVICE NHS FOUNDATION TRUST,22/03/2022,COMPLETE NETWORKS LTD                                            ,IT,ICT,1785406,"36,504.00",EXTERNAL NETWORK PROTECTION
DEPARTMENT OF HEALTH,SOUTH CENTRAL AMBULANCE SERVICE NHS FOUNDATION TRUST,01/03/2022,BUSY BEE CLEANING SERVICES LTD                                   ,DOMESTIC SERVICE CONTRACT,"FINANCE, ESTATES AND PROCUREMENT",1785408,"57,661.37",CLEANING CONTRACT
DEPARTMENT OF HEALTH,SOUTH CENTRAL AMBULANCE SERVICE NHS FOUNDATION TRUST,01/03/2022,BUSY BEE CLEANING SERVICES LTD                                   ,DOMESTIC SERVICE CONTRACT,"FINANCE, ESTATES AND PROCUREMENT",1785410,"58,320.85",CLEANING CONTRACT
DEPARTMENT OF HEALTH,SOUTH CENTRAL AMBULANCE SERVICE NHS FOUNDATION TRUST,22/03/2022,NICE MEDIA LTD                                                   ,EXTERNAL COURSE FEES/TRAINING,CLINICAL SERVICES,1785419,"35,016.00",HEE MENTAL HEALTH
DEPARTMENT OF HEALTH,SOUTH CENTRAL AMBULANCE SERVICE NHS FOUNDATION TRUST,21/03/2022,FRIMLEY PRIMARY CARE SERVICE                                     ,TEMPS CLINICAL,OPERATIONS,1786549,"625,754.00",URGENT CARE SUB-CONTRACT
DEPARTMENT OF HEALTH,SOUTH CENTRAL AMBULANCE SERVICE NHS FOUNDATION TRUST,23/03/2022,ORTIVUS UK LTD                                                   ,IT,OPERATIONS,1786603,"53,579.96",DATA HOSTING & MANAGED SERVICE
DEPARTMENT OF HEALTH,SOUTH CENTRAL AMBULANCE SERVICE NHS FOUNDATION TRUST,23/03/2022,NHS BUSINESS SERVICES AUTHORITY                                  ,EXTERNAL CONSULTANCY,OPERATIONS,1786643,"27,542.00",STAFF SECONDMENT
DEPARTMENT OF HEALTH,SOUTH CENTRAL AMBULANCE SERVICE NHS FOUNDATION TRUST,18/03/2022,THE 4OC LIMITED                                                  ,EXTERNAL CONSULTANCY,OPERATIONS,1790413,"57,540.00",PRIVATE PROVIDER REVIEW        
DEPARTMENT OF HEALTH,SOUTH CENTRAL AMBULANCE SERVICE NHS FOUNDATION TRUST,01/03/2022,LONDON CLANCY                                                    ,RENTS,"FINANCE, ESTATES AND PROCUREMENT",1790426,"108,488.46",RENT AND SERVICE CHARGE SOUTHERN HOUSE
DEPARTMENT OF HEALTH,SOUTH CENTRAL AMBULANCE SERVICE NHS FOUNDATION TRUST,24/03/2022,UNIVERSITY OF CUMBRIA                                            ,EXTERNAL COURSE FEES/TRAINING,CLINICAL SERVICES,1790431,"104,920.00",BSC PATHWAY LEVELS 5 AND 6
DEPARTMENT OF HEALTH,SOUTH CENTRAL AMBULANCE SERVICE NHS FOUNDATION TRUST,01/04/2022,NHS PROVIDERS                                                    ,SEMINARS/CONFERENCES,CHIEF EXECUTIVE AND THE BOARD,1790475,"26,116.00",NHS PROVIDERS MEMBERSHIP FEE   
DEPARTMENT OF HEALTH,SOUTH CENTRAL AMBULANCE SERVICE NHS FOUNDATION TRUST,13/03/2022,ELITE EVENT MEDICAL SERVICES LTD                                 ,PRIVATE AMBULANCE PROVIDERS,OPERATIONS,1790506,"35,074.48",PP HOURS
DEPARTMENT OF HEALTH,SOUTH CENTRAL AMBULANCE SERVICE NHS FOUNDATION TRUST,20/03/2022,ELITE EVENT MEDICAL SERVICES LTD                                 ,PRIVATE AMBULANCE PROVIDERS,OPERATIONS,1790507,"29,250.68",PP HOURS
DEPARTMENT OF HEALTH,SOUTH CENTRAL AMBULANCE SERVICE NHS FOUNDATION TRUST,13/03/2022,PHOENIX RESPONSE SERVICES LTD                                    ,PRIVATE AMBULANCE PROVIDERS,OPERATIONS,1790517,"31,124.38",PP HOURS
DEPARTMENT OF HEALTH,SOUTH CENTRAL AMBULANCE SERVICE NHS FOUNDATION TRUST,20/03/2022,PHOENIX RESPONSE SERVICES LTD                                    ,PRIVATE AMBULANCE PROVIDERS,OPERATIONS,1790518,"29,606.02",PP HOURS
DEPARTMENT OF HEALTH,SOUTH CENTRAL AMBULANCE SERVICE NHS FOUNDATION TRUST,13/03/2022,POLARIS MEDICAL SERVICES LTD                                     ,PRIVATE AMBULANCE PROVIDERS,OPERATIONS,1790520,"157,155.67",PP HOURS
DEPARTMENT OF HEALTH,SOUTH CENTRAL AMBULANCE SERVICE NHS FOUNDATION TRUST,20/03/2022,POLARIS MEDICAL SERVICES LTD                                     ,PRIVATE AMBULANCE PROVIDERS,OPERATIONS,1790521,"178,204.32",PP HOURS
DEPARTMENT OF HEALTH,SOUTH CENTRAL AMBULANCE SERVICE NHS FOUNDATION TRUST,18/03/2022,THE 4OC LIMITED                                                  ,EXTERNAL CONSULTANCY,NON EMERGENCY SERVICES,1790562,"42,840.00",PTS CONTACT CENTRE/ LOGISTICS REVIEW
DEPARTMENT OF HEALTH,SOUTH CENTRAL AMBULANCE SERVICE NHS FOUNDATION TRUST,18/03/2022,THE 4OC LIMITED                                                  ,EXTERNAL CONSULTANCY,NON EMERGENCY SERVICES,1790563,"30,600.00",PTS CONTACT CENTRE/ LOGISTICS REVIEW
DEPARTMENT OF HEALTH,SOUTH CENTRAL AMBULANCE SERVICE NHS FOUNDATION TRUST,28/03/2022,HAYS SPECIALIST RECRUITMENT LTD                                  ,TEMPS NON-CLINICAL,"FINANCE, ESTATES AND PROCUREMENT",1791164,"70,200.00",SENIOR CATEGORY MANAGER 6 MONTH
DEPARTMENT OF HEALTH,SOUTH CENTRAL AMBULANCE SERVICE NHS FOUNDATION TRUST,27/02/2022,MEDI4 AMBULANCE SERVICES LTD                                     ,PTS PRIVATE PROVIDERS,NON EMERGENCY SERVICES,1791301,"27,959.50",PP HOURS
DEPARTMENT OF HEALTH,SOUTH CENTRAL AMBULANCE SERVICE NHS FOUNDATION TRUST,17/03/2022,F.A.S.T. AMBULANCE SERVICE LTD                                   ,PTS PRIVATE PROVIDERS,NON EMERGENCY SERVICES,1791308,"35,523.80",PP HOURS
DEPARTMENT OF HEALTH,SOUTH CENTRAL AMBULANCE SERVICE NHS FOUNDATION TRUST,23/03/2022,F.A.S.T. AMBULANCE SERVICE LTD                                   ,PTS PRIVATE PROVIDERS,NON EMERGENCY SERVICES,1791309,"35,516.30",PP HOURS
DEPARTMENT OF HEALTH,SOUTH CENTRAL AMBULANCE SERVICE NHS FOUNDATION TRUST,21/03/2022,ELITE MEDICAL AND AMBULANCE SERVICE LTD                          ,PTS PRIVATE PROVIDERS,NON EMERGENCY SERVICES,1791313,"40,785.26",PP HOURS
DEPARTMENT OF HEALTH,SOUTH CENTRAL AMBULANCE SERVICE NHS FOUNDATION TRUST,28/03/2022,ELITE MEDICAL AND AMBULANCE SERVICE LTD                          ,PTS PRIVATE PROVIDERS,NON EMERGENCY SERVICES,1791314,"40,662.15",PP HOURS
DEPARTMENT OF HEALTH,SOUTH CENTRAL AMBULANCE SERVICE NHS FOUNDATION TRUST,06/03/2022,MEDI4 AMBULANCE SERVICES LTD                                     ,PTS PRIVATE PROVIDERS,NON EMERGENCY SERVICES,1791316,"25,735.44",PP HOURS
DEPARTMENT OF HEALTH,SOUTH CENTRAL AMBULANCE SERVICE NHS FOUNDATION TRUST,13/03/2022,MEDI4 AMBULANCE SERVICES LTD                                     ,PTS PRIVATE PROVIDERS,NON EMERGENCY SERVICES,1791317,"30,162.10",PP HOURS
DEPARTMENT OF HEALTH,SOUTH CENTRAL AMBULANCE SERVICE NHS FOUNDATION TRUST,20/03/2022,MEDI4 AMBULANCE SERVICES LTD                                     ,PTS PRIVATE PROVIDERS,NON EMERGENCY SERVICES,1791318,"30,547.18",PP HOURS
DEPARTMENT OF HEALTH,SOUTH CENTRAL AMBULANCE SERVICE NHS FOUNDATION TRUST,29/03/2022,TRUSTCO PLC                                                      ,IT,ICT,1791357,"1,033,755.48",SERVER REPLACEMENTS       
DEPARTMENT OF HEALTH,SOUTH CENTRAL AMBULANCE SERVICE NHS FOUNDATION TRUST,25/02/2022,DNA UK PROPERTIES LIMITED                                        ,RENTS,"FINANCE, ESTATES AND PROCUREMENT",1791373,"33,672.81",RENT MILTON KEYNES 111
DEPARTMENT OF HEALTH,SOUTH CENTRAL AMBULANCE SERVICE NHS FOUNDATION TRUST,24/03/2022,VENN GROUP LTD                                                   ,TEMPS NON-CLINICAL,"FINANCE, ESTATES AND PROCUREMENT",1791389,"37,809.90",SENIOR CATEGORY MANAGER 6 MONTH
DEPARTMENT OF HEALTH,SOUTH CENTRAL AMBULANCE SERVICE NHS FOUNDATION TRUST,24/03/2022,VENN GROUP LTD                                                   ,TEMPS NON-CLINICAL,"FINANCE, ESTATES AND PROCUREMENT",1791390,"68,189.40",SENIOR CATEGORY MANAGER 6 MONTH
DEPARTMENT OF HEALTH,SOUTH CENTRAL AMBULANCE SERVICE NHS FOUNDATION TRUST,24/03/2022,VENN GROUP LTD                                                   ,TEMPS NON-CLINICAL,"FINANCE, ESTATES AND PROCUREMENT",1791391,"26,139.60",ADMINISTRATOR 6 MONTH
DEPARTMENT OF HEALTH,SOUTH CENTRAL AMBULANCE SERVICE NHS FOUNDATION TRUST,03/03/2022,YORKSHIRE AMBULANCE SERVICE NHS TRUST                            ,RENTS,OPERATIONS,1791429,"31,500.00",RENT - YAS WAKEFIELD & ROTHERHAM 
DEPARTMENT OF HEALTH,SOUTH CENTRAL AMBULANCE SERVICE NHS FOUNDATION TRUST,24/03/2022,BUCKINGHAMSHIRE NEW UNIVERSITY                                   ,EXTERNAL COURSE FEES/TRAINING,HUMAN RESOURCES (HR),1791436,"92,000.00",BOB ICS
DEPARTMENT OF HEALTH,SOUTH CENTRAL AMBULANCE SERVICE NHS FOUNDATION TRUST,29/03/2022,UNIVERSITY OF CUMBRIA                                            ,EXTERNAL COURSE FEES/TRAINING,CLINICAL SERVICES,1791439,"29,500.00",BSC PATHWAY LEVELS 5 AND 6
DEPARTMENT OF HEALTH,SOUTH CENTRAL AMBULANCE SERVICE NHS FOUNDATION TRUST,24/02/2022,EDF ENERGY LIMITED                                               ,ELECTRICITY,"FINANCE, ESTATES AND PROCUREMENT",1791455,"49,593.63",ELECTRIC/GAS CONTRACT
DEPARTMENT OF HEALTH,SOUTH CENTRAL AMBULANCE SERVICE NHS FOUNDATION TRUST,28/03/2022,COMPLETE NETWORKS LTD                                            ,IT,ICT,1791457,"36,432.00",EXTERNAL NETWORK PROTECTION
DEPARTMENT OF HEALTH,SOUTH CENTRAL AMBULANCE SERVICE NHS FOUNDATION TRUST,31/03/2022,ALLSTAR FUEL CARD SERVICES- DD ONLY                              ,DIESEL,OPERATIONS,1797132,"123,372.97",FUEL
DEPARTMENT OF HEALTH,SOUTH CENTRAL AMBULANCE SERVICE NHS FOUNDATION TRUST,01/03/2022,LONDON CLANCY                                                    ,RENTS,"FINANCE, ESTATES AND PROCUREMENT",1797271,"27,845.64",RENT AND SERVICE CHARGE SOUTHERN HOUSE
DEPARTMENT OF HEALTH,SOUTH CENTRAL AMBULANCE SERVICE NHS FOUNDATION TRUST,28/03/2022,HEALTH DYNAMICS CONSULTING LTD                                   ,EXTERNAL COURSE FEES/TRAINING,HUMAN RESOURCES (HR),1797272,"36,000.00",WORKFORCE STRATEGY
DEPARTMENT OF HEALTH,SOUTH CENTRAL AMBULANCE SERVICE NHS FOUNDATION TRUST,28/03/2022,HEALTH DYNAMICS CONSULTING LTD                                   ,EXTERNAL COURSE FEES/TRAINING,HUMAN RESOURCES (HR),1797273,"48,000.00",WORKFORCE STRATEGY
DEPARTMENT OF HEALTH,SOUTH CENTRAL AMBULANCE SERVICE NHS FOUNDATION TRUST,29/03/2022,OXFORD HEALTH NHS FOUNDATION TRUST                               ,MEDICAL CONSUMABLES,OPERATIONS,1797274,"70,000.00",COURSES
DEPARTMENT OF HEALTH,SOUTH CENTRAL AMBULANCE SERVICE NHS FOUNDATION TRUST,27/03/2022,SMRS LTD                                                         ,EXTERNAL COURSE FEES/TRAINING,HUMAN RESOURCES (HR),1797275,"67,392.00",RECRUITMENT
DEPARTMENT OF HEALTH,SOUTH CENTRAL AMBULANCE SERVICE NHS FOUNDATION TRUST,28/02/2022,"NHS SOUTH, CENTRAL & WEST CSU                                    ",COVID GP,OPERATIONS,1797279,"205,683.48",CLINICAL ASSESSMENT SERVICE 
DEPARTMENT OF HEALTH,SOUTH CENTRAL AMBULANCE SERVICE NHS FOUNDATION TRUST,29/03/2022,SOUTH CENTRAL FLEET SERVICES LTD                                 ,FLEET SERVICES,OPERATIONS,1797351,"45,575.40",VEHICLE LEASE COSTS
DEPARTMENT OF HEALTH,SOUTH CENTRAL AMBULANCE SERVICE NHS FOUNDATION TRUST,29/03/2022,RODALE COMMERCIAL LTD                                            ,ACCIDENT REPAIRS,OPERATIONS,1797424,"26,745.70",VEHICLE MAINTENANCE
DEPARTMENT OF HEALTH,SOUTH CENTRAL AMBULANCE SERVICE NHS FOUNDATION TRUST,23/03/2022,CERTAS ENERGY UK LTD                                             ,FUEL,OPERATIONS,1797458,"31,123.79",FUEL
DEPARTMENT OF HEALTH,SOUTH CENTRAL AMBULANCE SERVICE NHS FOUNDATION TRUST,23/03/2022,"NHS SOUTH, CENTRAL & WEST CSU                                    ",COVID GP,OPERATIONS,1797567,"268,372.42",CLINICAL ASSESSMENT SERVICE 
DEPARTMENT OF HEALTH,SOUTH CENTRAL AMBULANCE SERVICE NHS FOUNDATION TRUST,23/03/2022,"NHS SOUTH, CENTRAL & WEST CSU                                    ",COVID GP,OPERATIONS,1797568,"458,257.52",CLINICAL ASSESSMENT SERVICE 
DEPARTMENT OF HEALTH,SOUTH CENTRAL AMBULANCE SERVICE NHS FOUNDATION TRUST,01/04/2022,INTUITI SOLUTIONS LTD                                            ,IT,OPERATIONS,1797621,"89,160.00",SYSTEM DEVELOPMENT AND SUPPORT
DEPARTMENT OF HEALTH,SOUTH CENTRAL AMBULANCE SERVICE NHS FOUNDATION TRUST,25/03/2022,TP HEALTH LTD                                                    ,OCCUP HEALTH NON NHS,HUMAN RESOURCES (HR),1797667,"52,644.00",OCCUPATIONAL HEALTH SERVICE PROVISION
DEPARTMENT OF HEALTH,SOUTH CENTRAL AMBULANCE SERVICE NHS FOUNDATION TRUST,29/03/2022,ZOLL MEDICAL UK LTD                                              ,AMBULANCE EQUIPMENT,OPERATIONS,1797728,"28,800.00",DEFIBRILATOR COSTS
DEPARTMENT OF HEALTH,SOUTH CENTRAL AMBULANCE SERVICE NHS FOUNDATION TRUST,29/03/2022,"NHS SOUTH, CENTRAL & WEST CSU                                    ",COVID GP,OPERATIONS,1797742,"67,608.50",GPCAS PROJECT                  
DEPARTMENT OF HEALTH,SOUTH CENTRAL AMBULANCE SERVICE NHS FOUNDATION TRUST,29/03/2022,"NHS SOUTH, CENTRAL & WEST CSU                                    ",COVID GP,OPERATIONS,1797743,"88,297.00",GPCAS PROJECT                  
DEPARTMENT OF HEALTH,SOUTH CENTRAL AMBULANCE SERVICE NHS FOUNDATION TRUST,29/03/2022,RESCUE AND MEDICAL LTD                                           ,AMBULANCE EQUIPMENT,OPERATIONS,1800387,"30,600.00",IEC BAGS
DEPARTMENT OF HEALTH,SOUTH CENTRAL AMBULANCE SERVICE NHS FOUNDATION TRUST,30/03/2022,ZOLL MEDICAL UK LTD                                              ,AMBULANCE EQUIPMENT,OPERATIONS,1800415,"754,917.22",DEFIBRILATOR COSTS
DEPARTMENT OF HEALTH,SOUTH CENTRAL AMBULANCE SERVICE NHS FOUNDATION TRUST,07/03/2022,EUROPEAN ELECTRONIQUE LTD                                        ,IT,ICT,1800417,"55,103.17",DATA LINES RENTAL & CALLS
DEPARTMENT OF HEALTH,SOUTH CENTRAL AMBULANCE SERVICE NHS FOUNDATION TRUST,30/03/2022,ZOLL MEDICAL UK LTD                                              ,TRAINING/TEACHING AIDS/EQUIPMENT,CLINICAL SERVICES,1800430,"133,628.40",DEFIBRILATOR COSTS
DEPARTMENT OF HEALTH,SOUTH CENTRAL AMBULANCE SERVICE NHS FOUNDATION TRUST,30/03/2022,ZOLL MEDICAL UK LTD                                              ,AMBULANCE EQUIPMENT,OPERATIONS,1800431,"158,448.48",DEFIBRILATOR COSTS
DEPARTMENT OF HEALTH,SOUTH CENTRAL AMBULANCE SERVICE NHS FOUNDATION TRUST,30/03/2022,ORTIVUS UK LTD                                                   ,IT,OPERATIONS,1800448,"70,370.40",DATA HOSTING & MANAGED SERVICE
DEPARTMENT OF HEALTH,SOUTH CENTRAL AMBULANCE SERVICE NHS FOUNDATION TRUST,04/03/2022,DRAEGER SAFETY UK LTD                                            ,MEDICAL CONSUMABLES,OPERATIONS,1800474,"33,660.65",SPECIALIST BREATHING APPARATUS
DEPARTMENT OF HEALTH,SOUTH CENTRAL AMBULANCE SERVICE NHS FOUNDATION TRUST,30/03/2022,TOTALMOBILE LTD                                                  ,EXTERNAL CONSULTANCY,OPERATIONS,1800475,"72,000.00",SYSTEM UPGRADE             
DEPARTMENT OF HEALTH,SOUTH CENTRAL AMBULANCE SERVICE NHS FOUNDATION TRUST,27/03/2022,ELITE EVENT MEDICAL SERVICES LTD                                 ,PRIVATE AMBULANCE PROVIDERS,OPERATIONS,1800510,"30,763.09",PP HOURS
DEPARTMENT OF HEALTH,SOUTH CENTRAL AMBULANCE SERVICE NHS FOUNDATION TRUST,27/03/2022,POLARIS MEDICAL SERVICES LTD                                     ,PRIVATE AMBULANCE PROVIDERS,OPERATIONS,1800515,"146,192.39",PP HOURS
DEPARTMENT OF HEALTH,SOUTH CENTRAL AMBULANCE SERVICE NHS FOUNDATION TRUST,30/03/2022,MTI TECHNOLOGY LTD                                               ,IT,ICT,1800604,"28,980.00",SOFTWARE MAINTENANCE
DEPARTMENT OF HEALTH,SOUTH CENTRAL AMBULANCE SERVICE NHS FOUNDATION TRUST,31/03/2022,NICE MEDIA LTD                                                   ,EXTERNAL COURSE FEES/TRAINING,CLINICAL SERVICES,1800609,"54,000.00",HEE MENTAL HEALTH
DEPARTMENT OF HEALTH,SOUTH CENTRAL AMBULANCE SERVICE NHS FOUNDATION TRUST,31/03/2022,J.TOMLINSON - INTEGRATED BUILDING SOLUTIONS                      ,BUILDING MAINTENANCE CONT,"FINANCE, ESTATES AND PROCUREMENT",1800630,"148,386.65",BUILDING MAINTENANCE CONTRACT
DEPARTMENT OF HEALTH,SOUTH CENTRAL AMBULANCE SERVICE NHS FOUNDATION TRUST,18/03/2022,THE 4OC LIMITED                                                  ,EXTERNAL CONSULTANCY,NON EMERGENCY SERVICES,1800651,"28,800.00",PTS STRATEGY                   
DEPARTMENT OF HEALTH,SOUTH CENTRAL AMBULANCE SERVICE NHS FOUNDATION TRUST,30/03/2022,NHS PENSION SCHEME - INJURY BENEFIT                              ,PROVISION FOR INJURY BENEFIT,CORPORATE AFFAIRS,1800694,"38,468.76",QUARTERLY INJURY BENEFIT CHARGE
DEPARTMENT OF HEALTH,SOUTH CENTRAL AMBULANCE SERVICE NHS FOUNDATION TRUST,23/03/2022,PHL - PARTNERING HEALTH LTD                                      ,TEMPS CLINICAL,OPERATIONS,1800697,"552,724.00",URGENT CARE SUB-CONTRACT
